[Event "Reykjavik Open 2022"]
[Site "Reykjavik"]
[Date "2022.04.10"]
[Round "6.48"]
[White "Roe, Simon J"]
[Black "Labrovic, Jakov"]
[Result "1-0"]
[ECO "E10"]
[WhiteElo "2211"]
[BlackElo "1806"]
[Annotator "NA RC"]
[PlyCount "63"]
[EventDate "2022.04.06"]
[EventCountry "ISL"]
[SourceTitle "playchess.com"]
[Source "ChessBase"]
[SourceQuality "1"]
[TimeControl "40/5400+30:1800+30"]

1. Nf3 {[%emt 0:00:04]} Nc6 {[%emt 0:06:36]} 2. d4 {[%emt 0:03:02]} d5 {[%emt 0:04:05]} 3. c4 {[%emt 0:01:05]} e6 {[%emt 0:01:25]} 4. e3 {[%emt 0:02:58]} Nf6 {[%emt 0:00:38]} 5. a3 {[%emt 0:00:11]} a5 {[%emt 0:00:14]} 6. Nc3 {[%emt 0:00:17]} Be7 {[%emt 0:00:44]} 7. Bd3 {[%emt 0:00:44]} O-O {[%emt 0:00:17]} 8. O-O {[%emt 0:00:07]} Re8 {[%emt 0:01:01]} 9. Qc2 {[%emt 0:03:51]} Bf8 {[%emt 0:02:05]} 10. Rd1 {[%emt 0:15:02]} g6 {[%emt 0:02:22]} 11. e4 {[%emt 0:07:18]} dxe4 {[%emt 0:01:47]} 12. Nxe4 {[%emt 0:00:09]} Nxe4 {[%emt 0:00:58]} 13. Bxe4 {[%emt 0:00:07]} Bg7 {[%emt 0:00:19]} 14. Be3 {[%emt 0:10:14]} Bd7 {[%emt 0:05:19]} 15. Bg5 {[%emt 0:08:22]} Qc8 {[%emt 0:02:55]} 16. Qd2 {[%emt 0:11:28]} Ne7 {[%emt 0:12:41]} 17. Bh6 {[%emt 0:07:38]} Ba4 {[%emt 0:02:48]} 18. Re1 {[%emt 0:00:42]} c5 {[%emt 0:04:53]} 19. Bxg7 {[%emt 0:07:06]} Kxg7 {[%emt 0:09:24]} 20. h4 {[%emt 0:01:49]} h5 {[%emt 0:02:06]} 21. d5 {[%emt 0:04:58]} exd5 {[%emt 0:08:45]} 22. cxd5 {[%emt 0:00:22]} f5 {[%emt 0:10:18]} 23. Bb1 {[%emt 0:02:21]} Ng8 {[%emt 0:03:57]} 24. Qc3+ {[%emt 0:02:42]} Nf6 {[%emt 0:00:46]} 25. Ba2 {[%emt 0:00:29]} b6 {[%emt 0:03:15]} 26. Rxe8 {[%emt 0:01:09]} Bxe8 {[%emt 0:00:44]} 27. Re1 {[%emt 0:01:20]} Qd8 {[%emt 0:02:09]} 28. Ng5 {[%emt 0:01:38]} Bd7 {[%emt 0:03:47]} 29. d6 {[%emt 0:01:04]} Qf8 {[%emt 0:06:26]} 30. Re7+ {[%emt 0:00:24]} Qxe7 {[%emt 0:01:31]} 31. dxe7 {[%emt 0:00:10]} Re8 {[%emt 0:00:34]} 32. Qe5 {[%emt 0:00:48]} 1-0

[Event "Reykjavik Open 2022"]
[Site "Reykjavik"]
[Date "2022.04.10"]
[Round "6.49"]
[White "Ptacnikova, Lenka"]
[Black "Finnsson, Johann Arnar"]
[Result "1-0"]
[ECO "B15"]
[WhiteElo "2173"]
[BlackElo "1805"]
[Annotator "NA RC"]
[PlyCount "69"]
[EventDate "2022.04.06"]
[EventCountry "ISL"]
[SourceTitle "playchess.com"]
[Source "ChessBase"]
[SourceQuality "1"]
[TimeControl "40/5400+30:1800+30"]

1. e4 {[%emt 0:04:16]} g6 {[%emt 0:00:34]} 2. d4 {[%emt 0:00:20]} Bg7 {[%emt 0:00:07]} 3. Nc3 {[%emt 0:00:10]} c6 {[%emt 0:00:08]} 4. f4 {[%emt 0:00:18]} d5 {[%emt 0:00:21]} 5. e5 {[%emt 0:00:06]} f6 {[%emt 0:00:13]} 6. Be2 {[%emt 0:03:13]} fxe5 {[%emt 0:00:22]} 7. fxe5 {[%emt 0:03:18]} Nh6 {[%emt 0:00:24]} 8. Nf3 {[%emt 0:01:20]} O-O {[%emt 0:00:18]} 9. O-O {[%emt 0:00:21]} Na6 {[%emt 0:00:16]} 10. Bxa6 {[%emt 0:01:19]} bxa6 {[%emt 0:00:06]} 11. Na4 {[%emt 0:01:02]} Nf7 {[%emt 0:03:09]} 12. Be3 {[%emt 0:06:53]} Rb8 {[%emt 0:00:45]} 13. b3 {[%emt 0:04:37]} Qc7 {[%emt 0:08:54]} 14. Qd2 {[%emt 0:01:38]} Rb5 {[%emt 0:09:54]} 15. Rae1 {[%emt 0:05:46]} Qa5 {[%emt 0:07:14]} 16. c3 {[%emt 0:01:48]} Qc7 {[%emt 0:03:48]} 17. Rf2 {[%emt 0:04:12]} Bf5 {[%emt 0:06:52]} 18. Ref1 {[%emt 0:01:02]} a5 {[%emt 0:04:32]} 19. h3 {[%emt 0:02:32]} h5 {[%emt 0:04:50]} 20. Nh4 {[%emt 0:05:57]} e6 {[%emt 0:07:02]} 21. Nc5 {[%emt 0:09:03]} Qe7 {[%emt 0:03:05]} 22. Nf3 {[%emt 0:03:00]} Re8 {[%emt 0:09:38]} 23. Nh2 {[%emt 0:06:07]} Nxe5 {[%emt 0:07:37]} 24. dxe5 {[%emt 0:03:32]} Bxe5 {[%emt 0:01:08]} 25. g4 {[%emt 0:11:24]} hxg4 {[%emt 0:04:15]} 26. hxg4 {[%emt 0:02:24]} Bxh2+ {[%emt 0:05:18]} 27. Rxh2 {[%emt 0:00:08]} Bxg4 {[%emt 0:00:17]} 28. Qg2 {[%emt 0:01:32]} Bf5 {[%emt 0:01:34]} 29. Bd4 {[%emt 0:00:40]} e5 {[%emt 0:00:49]} 30. Rxf5 {[%emt 0:00:11]} exd4 {[%emt 0:01:14]} 31. Qxg6+ {[%emt 0:00:59]} Qg7 {[%emt 0:00:04]} 32. Qxg7+ {[%emt 0:00:18]} Kxg7 {[%emt 0:00:07]} 33. Rg2+ {[%emt 0:00:07]} Kh6 {[%emt 0:00:14]} 34. Rf6+ {[%emt 0:00:21]} Kh5 {[%emt 0:01:31]} 35. Ne6 {[%emt 0:02:11]} 1-0

[Event "Reykjavik Open 2022"]
[Site "Reykjavik"]
[Date "2022.04.10"]
[Round "6.50"]
[White "Ragnarsson, Johann"]
[Black "Solnicki, Michal"]
[Result "1-0"]
[ECO "D35"]
[WhiteElo "1919"]
[BlackElo "2182"]
[Annotator "RC"]
[PlyCount "171"]
[EventDate "2022.04.06"]
[EventCountry "ISL"]
[SourceTitle "playchess.com"]
[Source "ChessBase"]
[SourceQuality "1"]
[TimeControl "40/5400+30:1800+30"]

1. d4 {[%emt 0:00:02]} Nf6 {[%emt 0:06:49]} 2. c4 {[%emt 0:00:25]} e6 {[%emt 0:00:08]} 3. Nc3 {[%emt 0:00:26]} d5 {[%emt 0:06:01]} 4. cxd5 {[%emt 0:01:01]} exd5 {[%emt 0:01:54]} 5. Bg5 {[%emt 0:01:02]} Be7 {[%emt 0:00:35]} 6. e3 {[%emt 0:00:11]} O-O {[%emt 0:02:52]} 7. Bd3 {[%emt 0:00:18]} h6 {[%emt 0:05:00]} 8. Bh4 {[%emt 0:00:54]} Re8 {[%emt 0:11:01]} 9. Qc2 {[%emt 0:01:39]} b6 {[%emt 0:26:51]} 10. Nge2 {[%emt 0:02:32]} Ba6 {[%emt 0:08:56]} 11. Bxa6 {[%emt 0:10:55]} Nxa6 {[%emt 0:00:05]} 12. Rd1 {[%emt 0:00:42]} Qd7 {[%emt 0:02:51]} 13. O-O {[%emt 0:01:20]} c6 {[%emt 0:01:06]} 14. f3 {[%emt 0:03:45]} Nc7 {[%emt 0:02:01]} 15. Bf2 {[%emt 0:01:58]} Rad8 {[%emt 0:03:04]} 16. e4 {[%emt 0:03:32]} dxe4 {[%emt 0:00:43]} 17. fxe4 {[%emt 0:00:17]} Ng4 {[%emt 0:00:42]} 18. Ng3 {[%emt 0:02:26]} Bh4 {[%emt 0:01:49]} 19. Qe2 {[%emt 0:15:11]} Nd5 {[%emt 0:02:10]} 20. Qf3 {[%emt 0:09:15]} Bxg3 {[%emt 0:01:07]} 21. Qxg3 {[%emt 0:05:07]} Nxc3 {[%emt 0:00:36]} 22. bxc3 {[%emt 0:00:22]} Rxe4 {[%emt 0:01:07]} 23. h3 {[%emt 0:02:34]} Nxf2 {[%emt 0:01:30]} 24. Rxf2 {[%emt 0:00:07]} Qd6 {[%emt 0:04:07]} 25. Qf3 {[%emt 0:01:22]} Qe6 {[%emt 0:00:51]} 26. Rdf1 {[%emt 0:06:03]} Rd7 {[%emt 0:00:06]} 27. Qg3 {[%emt 0:00:21]} Re3 {[%emt 0:00:44]} 28. Rf3 {[%emt 0:12:02]} Rxf3 {[%emt 0:00:07]} 29. Qxf3 {[%emt 0:00:02]} Re7 {[%emt 0:00:47]} 30. Kh1 {[%emt 0:01:01]} Qe2 {[%emt 0:01:02]} 31. Qf5 {[%emt 0:01:22]} Qe6 {[%emt 0:02:02]} 32. Qf3 {[%emt 0:01:33]} Qe4 {[%emt 0:01:00]} 33. Qg3 {[%emt 0:00:08]} Kh7 {[%emt 0:01:49]} 34. Qd6 {[%emt 0:03:14]} Qe6 {[%emt 0:04:05]} 35. Qxe6 {[%emt 0:02:01]} fxe6 {[%emt 0:00:02]} 36. Re1 {[%emt 0:00:07]} Kg6 {[%emt 0:00:11]} 37. Kg1 {[%emt 0:00:13]} Kf5 {[%emt 0:00:49]} 38. Kf2 {[%emt 0:01:06]} e5 {[%emt 0:01:04]} 39. Kf3 {[%emt 0:00:44]} Kf6 {[%emt 0:00:34]} 40. Rd1 {[%emt 0:00:00]} exd4 {[%emt 0:00:00]} 41. Rxd4 {[%emt 0:05:44]} Ke6 {[%emt 0:05:11]} 42. h4 {[%emt 0:02:07]} Rd7 {[%emt 0:01:05]} 43. Re4+ {[%emt 0:00:48]} Kd6 {[%emt 0:00:35]} 44. Kg4 {[%emt 0:04:01]} Re7 {[%emt 0:08:54]} 45. Rd4+ {[%emt 0:08:44]} Ke6 {[%emt 0:00:12]} 46. Kh5 {[%emt 0:00:41]} Kf7 {[%emt 0:01:07]} 47. g4 {[%emt 0:00:28]} c5 {[%emt 0:05:36]} 48. Rd6 {[%emt 0:05:38]} Rc7 {[%emt 0:04:58]} 49. g5 {[%emt 0:00:24]} hxg5 {[%emt 0:00:17]} 50. hxg5 {[%emt 0:00:15]} b5 {[%emt 0:00:43]} 51. a3 {[%emt 0:03:22]} Ke7 {[%emt 0:01:33]} 52. Ra6 {[%emt 0:01:50]} Kf7 {[%emt 0:01:16]} 53. g6+ {[%emt 0:02:08]} Ke7 {[%emt 0:00:30]} 54. Kg5 {[%emt 0:00:02]} Kd7 {[%emt 0:01:44]} 55. Kf5 {[%emt 0:00:34]} c4 {[%emt 0:02:15]} 56. Ke5 {[%emt 0:01:12]} Rb7 {[%emt 0:01:33]} 57. Kd5 {[%emt 0:00:40]} Ke7 {[%emt 0:00:49]} 58. Kc6 {[%emt 0:02:00]} Rb8 {[%emt 0:00:24]} 59. Rxa7+ {[%emt 0:01:30]} Kf6 {[%emt 0:00:05]} 60. Ra6 {[%emt 0:00:09]} Ke5 {[%emt 0:01:14]} 61. Kc5 {[%emt 0:01:45]} Ke4 {[%emt 0:00:31]} 62. Ra7 {[%emt 0:02:09]} Kd3 {[%emt 0:01:24]} 63. Kb4 {[%emt 0:00:08]} Rg8 {[%emt 0:00:56]} 64. Rb7 {[%emt 0:00:10]} Ra8 {[%emt 0:00:05]} 65. Rxb5 {[%emt 0:02:11]} Ra6 {[%emt 0:00:02]} 66. Rd5+ {[%emt 0:00:16]} Ke4 {[%emt 0:00:49]} 67. Rg5 {[%emt 0:00:16]} Kd3 {[%emt 0:00:56]} 68. Rg3+ {[%emt 0:00:10]} Kc2 {[%emt 0:00:07]} 69. a4 {[%emt 0:00:11]} Rf6 {[%emt 0:01:10]} 70. a5 {[%emt 0:00:19]} Rc6 {[%emt 0:00:37]} 71. Kb5 {[%emt 0:00:23]} Rc8 {[%emt 0:00:31]} 72. Kb4 {[%emt 0:00:56]} Kb2 {[%emt 0:00:22]} 73. Rg2+ {[%emt 0:00:13]} Kc1 {[%emt 0:00:02]} 74. a6 {[%emt 0:00:14]} Kb1 {[%emt 0:00:20]} 75. Kb5 {[%emt 0:00:36]} Rb8+ {[%emt 0:00:28]} 76. Kxc4 {[%emt 0:00:14]} Rb6 {[%emt 0:00:02]} 77. a7 {[%emt 0:00:31]} Ra6 {[%emt 0:00:02]} 78. Kb5 {[%emt 0:00:10]} Rxa7 {[%emt 0:00:05]} 79. c4 {[%emt 0:00:08]} Kc1 {[%emt 0:00:25]} 80. c5 {[%emt 0:00:26]} Kd1 {[%emt 0:00:12]} 81. Kb6 {[%emt 0:01:02]} Ra3 {[%emt 0:00:39]} 82. c6 {[%emt 0:00:11]} Rb3+ {[%emt 0:00:03]} 83. Kc7 {[%emt 0:00:09]} Ke1 {[%emt 0:00:03]} 84. Kc8 {[%emt 0:00:23]} Kf1 {[%emt 0:00:05]} 85. Rd2 {[%emt 0:00:09]} Rf3 {[%emt 0:01:47]} 86. Rd6 {[%emt 0:00:13]} 1-0

[Event "Reykjavik Open 2022"]
[Site "Reykjavik"]
[Date "2022.04.10"]
[Round "6.51"]
[White "Gudmundsson, Gunnar Erik"]
[Black "Louis, Thibault"]
[Result "1-0"]
[ECO "E36"]
[WhiteElo "1906"]
[BlackElo "2181"]
[Annotator "NA RC"]
[PlyCount "65"]
[EventDate "2022.04.06"]
[EventCountry "ISL"]
[SourceTitle "playchess.com"]
[Source "ChessBase"]
[SourceQuality "1"]
[TimeControl "40/5400+30:1800+30"]

1. d4 {[%emt 0:00:03]} Nf6 {[%emt 0:03:56]} 2. c4 {[%emt 0:00:42]} e6 {[%emt 0:01:07]} 3. Nc3 {[%emt 0:00:51]} Bb4 {[%emt 0:00:08]} 4. Qc2 {[%emt 0:00:40]} d5 {[%emt 0:03:52]} 5. a3 {[%emt 0:01:43]} Be7 {[%emt 0:01:03]} 6. cxd5 {[%emt 0:02:16]} exd5 {[%emt 0:00:08]} 7. Bg5 {[%emt 0:00:51]} h6 {[%emt 0:01:37]} 8. Bh4 {[%emt 0:00:27]} O-O {[%emt 0:05:45]} 9. e3 {[%emt 0:01:19]} b6 {[%emt 0:01:53]} 10. Bd3 {[%emt 0:03:39]} c5 {[%emt 0:00:23]} 11. Nge2 {[%emt 0:01:22]} Nc6 {[%emt 0:05:38]} 12. O-O {[%emt 0:04:56]} Be6 {[%emt 0:01:26]} 13. dxc5 {[%emt 0:12:26]} bxc5 {[%emt 0:02:12]} 14. Rad1 {[%emt 0:02:50]} Qc8 {[%emt 0:02:39]} 15. Bxf6 {[%emt 0:06:14]} Bxf6 {[%emt 0:01:38]} 16. Nxd5 {[%emt 0:10:14]} Bxb2 {[%emt 0:12:23]} 17. Qxb2 {[%emt 0:01:28]} Bxd5 {[%emt 0:00:12]} 18. Bh7+ {[%emt 0:00:23]} Kxh7 {[%emt 0:00:12]} 19. Rxd5 {[%emt 0:00:04]} f5 {[%emt 0:07:27]} 20. Rxc5 {[%emt 0:00:54]} Qd7 {[%emt 0:03:04]} 21. Qb5 {[%emt 0:04:21]} Nb8 {[%emt 0:16:31]} 22. Qc4 {[%emt 0:05:20]} Qe7 {[%emt 0:13:20]} 23. Nd4 {[%emt 0:12:18]} Nd7 {[%emt 0:04:08]} 24. Rxf5 {[%emt 0:02:19]} Qxa3 {[%emt 0:00:48]} 25. Rxf8 {[%emt 0:04:54]} Rxf8 {[%emt 0:00:46]} 26. Nb5 {[%emt 0:00:36]} Qe7 {[%emt 0:04:32]} 27. Nxa7 {[%emt 0:03:45]} Nf6 {[%emt 0:01:15]} 28. Nb5 {[%emt 0:02:30]} Qe5 {[%emt 0:01:39]} 29. Qd3+ {[%emt 0:04:42]} Kh8 {[%emt 0:00:09]} 30. Qd6 {[%emt 0:03:45]} Qe8 {[%emt 0:00:08]} 31. Nd4 {[%emt 0:02:47]} Ne4 {[%emt 0:00:45]} 32. Qe6 {[%emt 0:00:25]} Qa8 {[%emt 0:00:08]} 33. Qc6 {[%emt 0:00:57]} 1-0

[Event "Reykjavik Open 2022"]
[Site "Reykjavik"]
[Date "2022.04.10"]
[Round "6.52"]
[White "Schmidt, Kai-Uwe"]
[Black "Domalchuk-Jonasson, Aleksandr"]
[Result "0-1"]
[ECO "A46"]
[WhiteElo "1904"]
[BlackElo "2162"]
[Annotator "NA RC"]
[PlyCount "60"]
[EventDate "2022.04.06"]
[EventCountry "ISL"]
[SourceTitle "playchess.com"]
[Source "ChessBase"]
[SourceQuality "1"]
[TimeControl "40/5400+30:1800+30"]

1. d4 {[%emt 0:10:59]} Nf6 {[%emt 0:01:11]} 2. Nf3 {[%emt 0:00:16]} e6 {[%emt 0:01:13]} 3. Bg5 {[%emt 0:00:56]} h6 {[%emt 0:00:20]} 4. Bxf6 {[%emt 0:00:17]} Qxf6 {[%emt 0:00:05]} 5. e4 {[%emt 0:00:12]} d6 {[%emt 0:00:54]} 6. Nc3 {[%emt 0:00:08]} g6 {[%emt 0:00:47]} 7. Qd2 {[%emt 0:00:14]} Bg7 {[%emt 0:01:11]} 8. O-O-O {[%emt 0:00:16]} Qe7 {[%emt 0:02:20]} 9. Kb1 {[%emt 0:01:38]} Nd7 {[%emt 0:02:59]} 10. h4 {[%emt 0:17:25]} O-O {[%emt 0:07:25]} 11. e5 {[%emt 0:14:48]} dxe5 {[%emt 0:25:58]} 12. dxe5 {[%emt 0:00:42]} Nxe5 {[%emt 0:00:27]} 13. Nxe5 {[%emt 0:00:55]} Bxe5 {[%emt 0:00:06]} 14. Qxh6 {[%emt 0:03:23]} Qb4 {[%emt 0:07:23]} 15. Qe3 {[%emt 0:10:57]} Bxc3 {[%emt 0:00:40]} 16. Qxc3 {[%emt 0:00:09]} Qxc3 {[%emt 0:00:04]} 17. bxc3 {[%emt 0:00:07]} Kg7 {[%emt 0:05:05]} 18. f4 {[%emt 0:12:04]} b6 {[%emt 0:04:01]} 19. Bd3 {[%emt 0:10:18]} Bb7 {[%emt 0:00:58]} 20. Rh2 {[%emt 0:01:00]} Rad8 {[%emt 0:06:19]} 21. Re1 {[%emt 0:00:13]} Rh8 {[%emt 0:03:06]} 22. Re3 {[%emt 0:02:48]} Rh5 {[%emt 0:04:16]} 23. g4 {[%emt 0:02:26]} Ra5 {[%emt 0:00:42]} 24. Rf2 {[%emt 0:04:17]} Kf6 {[%emt 0:03:40]} 25. h5 {[%emt 0:04:24]} gxh5 {[%emt 0:02:11]} 26. g5+ {[%emt 0:00:05]} Kg7 {[%emt 0:00:59]} 27. Rh2 {[%emt 0:00:33]} Rh8 {[%emt 0:03:00]} 28. Reh3 {[%emt 0:00:22]} e5 {[%emt 0:02:01]} 29. f5 {[%emt 0:01:33]} e4 {[%emt 0:00:26]} 30. Be2 {[%emt 0:00:24]} Rxf5 {[%emt 0:00:42]} 0-1

[Event "Reykjavik Open 2022"]
[Site "Reykjavik"]
[Date "2022.04.10"]
[Round "6.53"]
[White "Haraldsson, Haraldur"]
[Black "Wichtrup, Jan-Louis"]
[Result "1/2-1/2"]
[ECO "A30"]
[WhiteElo "1936"]
[BlackElo "2155"]
[Annotator "NA RC"]
[PlyCount "61"]
[EventDate "2022.04.06"]
[EventCountry "ISL"]
[SourceTitle "playchess.com"]
[Source "ChessBase"]
[SourceQuality "1"]
[TimeControl "40/5400+30:1800+30"]

1. Nf3 {[%emt 0:00:07]} b6 {[%emt 0:09:08]} 2. c4 {[%emt 0:02:54]} Bb7 {[%emt 0:00:28]} 3. e3 {[%emt 0:00:50]} g6 {[%emt 0:01:40]} 4. Nc3 {[%emt 0:00:37]} Nf6 {[%emt 0:00:31]} 5. b3 {[%emt 0:02:11]} Bg7 {[%emt 0:09:14]} 6. Bb2 {[%emt 0:00:07]} O-O {[%emt 0:00:26]} 7. Be2 {[%emt 0:00:21]} c5 {[%emt 0:05:18]} 8. O-O {[%emt 0:01:11]} Nc6 {[%emt 0:00:21]} 9. d4 {[%emt 0:05:18]} cxd4 {[%emt 0:00:12]} 10. exd4 {[%emt 0:00:37]} d5 {[%emt 0:00:12]} 11. Ne5 {[%emt 0:14:32]} dxc4 {[%emt 0:03:05]} 12. Bf3 {[%emt 0:04:31]} Qc8 {[%emt 0:09:33]} 13. Bxc6 {[%emt 0:03:39]} Bxc6 {[%emt 0:00:18]} 14. bxc4 {[%emt 0:00:11]} Ne4 {[%emt 0:07:07]} 15. Nxe4 {[%emt 0:05:34]} Bxe4 {[%emt 0:02:27]} 16. Qe2 {[%emt 0:01:04]} Bb7 {[%emt 0:01:15]} 17. Rac1 {[%emt 0:00:25]} Rd8 {[%emt 0:00:55]} 18. Rfe1 {[%emt 0:06:16]} Qc7 {[%emt 0:06:55]} 19. d5 {[%emt 0:09:13]} Re8 {[%emt 0:15:56]} 20. h4 {[%emt 0:10:02]} Qc8 {[%emt 0:03:33]} 21. Rc3 {[%emt 0:11:06]} Bxe5 {[%emt 0:08:01]} 22. Qxe5 {[%emt 0:00:22]} f6 {[%emt 0:00:08]} 23. Qf4 {[%emt 0:04:06]} b5 {[%emt 0:03:18]} 24. d6 {[%emt 0:07:55]} Qc6 {[%emt 0:03:49]} 25. f3 {[%emt 0:02:17]} Qxd6 {[%emt 0:00:48]} 26. Qxd6 {[%emt 0:00:42]} exd6 {[%emt 0:00:07]} 27. Rxe8+ {[%emt 0:01:25]} Rxe8 {[%emt 0:00:07]} 28. cxb5 {[%emt 0:00:22]} Re2 {[%emt 0:00:39]} 29. Ba3 {[%emt 0:01:07]} Rxa2 {[%emt 0:00:35]} 30. Bxd6 {[%emt 0:00:07]} Rb2 {[%emt 0:01:03]} 31. Rc5 {[%emt 0:02:21]} 1/2-1/2

[Event "Reykjavik Open 2022"]
[Site "Reykjavik"]
[Date "2022.04.10"]
[Round "6.54"]
[White "Zheng, Harry Z"]
[Black "Decosse, Jean-Fabien"]
[Result "1/2-1/2"]
[ECO "B07"]
[WhiteElo "1718"]
[BlackElo "2156"]
[Annotator "RC"]
[PlyCount "129"]
[EventDate "2022.04.06"]
[EventCountry "ISL"]
[SourceTitle "playchess.com"]
[Source "ChessBase"]
[SourceQuality "1"]
[TimeControl "40/5400+30:1800+30"]

1. e4 {[%emt 0:00:03]} d6 {[%emt 0:01:46]} 2. d4 {[%emt 0:00:17]} Nf6 {[%emt 0:00:29]} 3. Nc3 {[%emt 0:00:27]} e5 {[%emt 0:00:19]} 4. dxe5 {[%emt 0:00:18]} dxe5 {[%emt 0:00:10]} 5. Qxd8+ {[%emt 0:00:28]} Kxd8 {[%emt 0:00:04]} 6. Bc4 {[%emt 0:00:15]} Bb4 {[%emt 0:00:08]} 7. Bd2 {[%emt 0:02:57]} Ke7 {[%emt 0:00:46]} 8. O-O-O {[%emt 0:01:00]} c6 {[%emt 0:03:28]} 9. Nf3 {[%emt 0:23:00]} Nbd7 {[%emt 0:05:27]} 10. Nd5+ {[%emt 0:04:52]} Nxd5 {[%emt 0:00:10]} 11. exd5 {[%emt 0:00:09]} Bd6 {[%emt 0:02:26]} 12. dxc6 {[%emt 0:00:56]} bxc6 {[%emt 0:00:05]} 13. Ng5 {[%emt 0:02:22]} Nb6 {[%emt 0:02:10]} 14. Bb3 {[%emt 0:05:56]} Nd5 {[%emt 0:11:24]} 15. c4 {[%emt 0:06:29]} Nf6 {[%emt 0:08:40]} 16. Nxf7 {[%emt 0:07:13]} Kxf7 {[%emt 0:00:27]} 17. c5+ {[%emt 0:00:08]} Be6 {[%emt 0:01:56]} 18. Bxe6+ {[%emt 0:02:32]} Kxe6 {[%emt 0:00:05]} 19. cxd6 {[%emt 0:00:21]} Nd5 {[%emt 0:01:25]} 20. Rhe1 {[%emt 0:04:54]} Rhf8 {[%emt 0:08:32]} 21. Re2 {[%emt 0:07:13]} Rf7 {[%emt 0:02:38]} 22. g3 {[%emt 0:09:19]} Kxd6 {[%emt 0:01:02]} 23. Bc3 {[%emt 0:00:42]} Re8 {[%emt 0:07:05]} 24. f4 {[%emt 0:00:26]} e4 {[%emt 0:00:15]} 25. Be5+ {[%emt 0:00:25]} Rxe5 {[%emt 0:01:27]} 26. fxe5+ {[%emt 0:00:25]} Kxe5 {[%emt 0:00:02]} 27. Kd2 {[%emt 0:04:13]} h5 {[%emt 0:02:23]} 28. a3 {[%emt 0:01:15]} g5 {[%emt 0:03:58]} 29. Rc1 {[%emt 0:06:02]} Rf6 {[%emt 0:03:13]} 30. Rc4 {[%emt 0:01:08]} e3+ {[%emt 0:00:11]} 31. Kd3 {[%emt 0:00:05]} h4 {[%emt 0:06:09]} 32. gxh4 {[%emt 0:06:08]} Nf4+ {[%emt 0:00:51]} 33. Kxe3 {[%emt 0:00:13]} Nxe2 {[%emt 0:00:16]} 34. Kxe2 {[%emt 0:00:19]} Rh6 {[%emt 0:06:31]} 35. Rc5+ {[%emt 0:01:21]} Kd4 {[%emt 0:01:19]} 36. Rxg5 {[%emt 0:00:12]} Rxh4 {[%emt 0:00:09]} 37. Rg2 {[%emt 0:00:09]} Rh3 {[%emt 0:04:22]} 38. Kf2 {[%emt 0:02:16]} a5 {[%emt 0:09:54]} 39. Kg1 {[%emt 0:00:51]} Kc4 {[%emt 0:00:34]} 40. Rf2 {[%emt 0:00:00]} Kb3 {[%emt 0:00:00]} 41. Kg2 {[%emt 0:05:14]} Rh8 {[%emt 0:02:26]} 42. Re2 {[%emt 0:06:55]} c5 {[%emt 0:02:54]} 43. Kg3 {[%emt 0:11:56]} Rg8+ {[%emt 0:00:39]} 44. Kf4 {[%emt 0:00:11]} Rh8 {[%emt 0:01:13]} 45. Kg5 {[%emt 0:01:08]} Rg8+ {[%emt 0:00:22]} 46. Kf6 {[%emt 0:01:41]} Rh8 {[%emt 0:00:09]} 47. Ke7 {[%emt 0:01:35]} c4 {[%emt 0:00:44]} 48. Kd7 {[%emt 0:01:30]} a4 {[%emt 0:01:57]} 49. Kc6 {[%emt 0:03:58]} Rh5 {[%emt 0:04:31]} 50. Kb6 {[%emt 0:01:50]} c3 {[%emt 0:06:16]} 51. bxc3 {[%emt 0:00:15]} Kxa3 {[%emt 0:00:08]} 52. c4 {[%emt 0:00:37]} Kb4 {[%emt 0:00:13]} 53. Re4 {[%emt 0:02:01]} Rh6+ {[%emt 0:00:54]} 54. Kb7 {[%emt 0:00:18]} Kc5 {[%emt 0:10:33]} 55. h4 {[%emt 0:00:34]} a3 {[%emt 0:00:05]} 56. Re3 {[%emt 0:00:23]} Rh7+ {[%emt 0:08:58]} 57. Kb8 {[%emt 0:00:32]} Kb4 {[%emt 0:01:58]} 58. Rxa3 {[%emt 0:00:11]} Kxa3 {[%emt 0:01:10]} 59. c5 {[%emt 0:00:05]} Rh8+ {[%emt 0:00:31]} 60. Kb7 {[%emt 0:00:10]} Rh7+ {[%emt 0:00:50]} 61. Kb8 {[%emt 0:00:06]} Rxh4 {[%emt 0:00:36]} 62. c6 {[%emt 0:00:06]} Rb4+ {[%emt 0:00:11]} 63. Ka7 {[%emt 0:01:09]} Rc4 {[%emt 0:00:05]} 64. Kb7 {[%emt 0:00:07]} Rxc6 {[%emt 0:00:10]} 65. Kxc6 {[%emt 0:00:06]} 1/2-1/2

[Event "Reykjavik Open 2022"]
[Site "Reykjavik"]
[Date "2022.04.10"]
[Round "6.55"]
[White "Hughes, Anthony"]
[Black "Marie, Maxime"]
[Result "0-1"]
[ECO "A22"]
[WhiteElo "1873"]
[BlackElo "2175"]
[Annotator "NA RC"]
[PlyCount "84"]
[EventDate "2022.04.06"]
[EventCountry "ISL"]
[SourceTitle "playchess.com"]
[Source "ChessBase"]
[SourceQuality "1"]
[TimeControl "40/5400+30:1800+30"]

1. c4 {[%emt 0:05:12]} e5 {[%emt 0:03:55]} 2. Nc3 {[%emt 0:00:08]} Nf6 {[%emt 0:00:21]} 3. g3 {[%emt 0:00:06]} Bc5 {[%emt 0:01:30]} 4. Nf3 {[%emt 0:00:39]} d6 {[%emt 0:00:29]} 5. Bg2 {[%emt 0:00:30]} a6 {[%emt 0:00:31]} 6. O-O {[%emt 0:00:09]} Nc6 {[%emt 0:01:04]} 7. e3 {[%emt 0:00:17]} Ba7 {[%emt 0:03:58]} 8. d4 {[%emt 0:00:13]} Bg4 {[%emt 0:01:44]} 9. h3 {[%emt 0:10:23]} Bxf3 {[%emt 0:03:25]} 10. Bxf3 {[%emt 0:00:44]} Qd7 {[%emt 0:03:26]} 11. Kh2 {[%emt 0:16:21]} O-O {[%emt 0:15:38]} 12. d5 {[%emt 0:20:52]} Nd8 {[%emt 0:05:18]} 13. Qd3 {[%emt 0:03:54]} g6 {[%emt 0:02:07]} 14. e4 {[%emt 0:01:15]} Kg7 {[%emt 0:02:11]} 15. Bg5 {[%emt 0:02:27]} Ng8 {[%emt 0:01:18]} 16. b4 {[%emt 0:00:57]} Bd4 {[%emt 0:02:36]} 17. Be3 {[%emt 0:01:18]} Bxe3 {[%emt 0:00:42]} 18. Qxe3 {[%emt 0:00:21]} f5 {[%emt 0:00:51]} 19. c5 {[%emt 0:07:23]} Nf7 {[%emt 0:04:34]} 20. a4 {[%emt 0:02:42]} Nf6 {[%emt 0:00:20]} 21. b5 {[%emt 0:00:38]} f4 {[%emt 0:00:51]} 22. c6 {[%emt 0:07:23]} fxe3 {[%emt 0:04:57]} 23. cxd7 {[%emt 0:00:06]} Nxd7 {[%emt 0:00:08]} 24. Bg4 {[%emt 0:02:49]} Nc5 {[%emt 0:00:11]} 25. fxe3 {[%emt 0:04:21]} Ng5 {[%emt 0:03:56]} 26. bxa6 {[%emt 0:03:07]} bxa6 {[%emt 0:00:13]} 27. Kg2 {[%emt 0:00:40]} Ngxe4 {[%emt 0:00:23]} 28. Nxe4 {[%emt 0:00:52]} Nxe4 {[%emt 0:00:05]} 29. a5 {[%emt 0:01:19]} Nc5 {[%emt 0:02:42]} 30. Be2 {[%emt 0:02:07]} Rxf1 {[%emt 0:00:37]} 31. Rxf1 {[%emt 0:00:23]} Rb8 {[%emt 0:00:06]} 32. Kf3 {[%emt 0:00:45]} Rb2 {[%emt 0:01:28]} 33. Ra1 {[%emt 0:00:20]} e4+ {[%emt 0:02:18]} 34. Kf2 {[%emt 0:00:21]} Kf6 {[%emt 0:00:09]} 35. g4 {[%emt 0:01:52]} Ke5 {[%emt 0:00:21]} 36. Rd1 {[%emt 0:01:01]} Nd3+ {[%emt 0:11:00]} 37. Kf1 {[%emt 0:00:17]} Kxd5 {[%emt 0:00:13]} 38. Bxd3 {[%emt 0:00:23]} exd3 {[%emt 0:00:05]} 39. Rxd3+ {[%emt 0:00:14]} Ke4 {[%emt 0:00:17]} 40. Rc3 {[%emt 0:00:00]} c5 {[%emt 0:00:00]} 41. h4 {[%emt 0:02:43]} Kf3 {[%emt 0:02:46]} 42. Ke1 {[%emt 0:01:59]} Re2+ {[%emt 0:05:23]} 0-1